Cogmind - Beta 16.1 @@@ ROGUE MODE // 2026.05.03 @ 03:16:23 Player: KURIIRI Result: Self-destructed Performance ------------- Evolutions (0) 0 Regions Visited (3) 600 Robots Destroyed (53) 265 Value Destroyed (1309) 1309 Prototype IDs (13) 260 Alien Tech Used (0) 0 Bonus (-127) -127 TOTAL SCORE: 2307 Bonus ------- Friendly Fire -127 Cogmind --------- Core Integrity 5/250 Matter 288/300 Energy 125/125 System Corruption 0% Temperature Cool (0) Movement Treading (160) Location -9/Scraptown Parts ------- > --- POWER (1) -------- Light Ion Engine > --- PROPULSION (2) --- Light Treads > --- UTILITY (2) ------ Makeshift Light Armor Plating > --- WEAPON (2) ------- Particle Cannon Subdweller Beam Cannon > --- INVENTORY (5) ---- Large Storage Unit Subdweller Beam Cannon Heavy Battle Rifle Subdweller Shrapnel Launcher Ripper Peak State ------------ > --- POWER ------------ Ion Engine > --- PROPULSION ------- Light Treads Light Treads > --- UTILITY ---------- Scrap Shield > --- WEAPON ----------- Particle Cannon Particle Cannon > --- INVENTORY -------- Light Ion Engine Large Storage Unit Light EM Pulse Cannon Light EM Pulse Cannon Heavy Battle Rifle [Rating: 12] Favorites ----------- Power Light Ion Engine Engine Light Ion Engine Propulsion Light Treads Treads Light Treads Leg Aluminum Leg Utility Large Storage Unit Device Improved Terrain Scanner Storage Large Storage Unit Protection Scrap Shield Weapon Subdweller Beam Cannon Energy Gun EM Pulse Gun Energy Cannon Subdweller Beam Cannon Ballistic Gun Light Assault Rifle Ballistic Cannon Light Cannon Launcher Grenade Launcher Build | -11 -10 -10 -9 ------- Run | Yrd Mat Sub Scr Slots Evolved . | . . . . Power . | . . . . Propulsion . | . . . . Utility . | . . . . Weapon . | . . . . Parts Attached 22 | 3 10 9 . Power 3 | . 1 2 . Engine 3 | . 1 2 . Core . | . . . . Reactor . | . . . . Propulsion 3 | 2 . 1 . Treads 3 | 2 . 1 . Leg . | . . . . Wheel . | . . . . Hover . | . . . . Flight . | . . . . Utility 5 | 1 2 2 . Device 1 | 1 . . . Storage 1 | . 1 . . Processor . | . . . . Hackware . | . . . . Protection 3 | . 1 2 . Artifact . | . . . . Weapon 11 | . 7 4 . Energy Gun 2 | . 2 . . Energy Cannon 6 | . 2 4 . Ballistic Gun 1 | . 1 . . Ballistic Cannon 1 | . 1 . . Launcher 1 | . 1 . . Special Weapon . | . . . . Impact Weapon . | . . . . Slashing Weapon . | . . . . Piercing Weapon . | . . . . Special Melee Weapon . | . . . . Unidentified Prototypes . | . . . . Parts Lost 4 | . . 4 . Power 2 | . . 2 . Propulsion 1 | . . 1 . Utility 1 | . . 1 . Weapon . | . . . . Highest Loss Streak 1 | . . 1 . To Critical Strikes . | . . . . Average Backups 6 | 6 10 5 5 Power . | 1 1 . . Propulsion . | 4 2 . . Utility 1 | . 3 1 1 Weapon 3 | 1 4 3 4 Tool/Special . | . . . . Unused Backups 23 | 6 3 11 3 Power 2 | 1 . 1 . Propulsion 4 | 2 1 1 . Utility 3 | 1 . 2 . Weapon 14 | 2 2 7 3 Tool/Special . | . . . . Average Slot Usage (%) 81 | . 100 74 71 Engine 13 | . 14 13 14 Treads 26 | . 28 25 14 Device 3 | . 12 . . Storage 4 | . 14 . . Protection 4 | . 1 5 14 Energy Cannon 20 | . 1 28 28 Ballistic Gun 3 | . 12 . . Launcher 2 | . 10 . . Peak Build Rating 12 | 9 11 12 11 Average Rating 9 | 7 9 9 11 On Entrance 9 | 6 9 11 11 Avg Prop Armor Cover (%) . | . . . . Naked Turns . | . . . . Heaviest Build 34 | 11 34 34 19 Greatest Support 40 | 40 40 40 20 Greatest Overweight (x) . | . . . . Average Overweight (x) . | . . . . Largest Inventory Capacity 15 | 8 15 15 5 Average Capacity 7 | 8 14 5 5 Most Carried 15 | 6 15 15 5 Average Carried 6 | 5 10 5 5 Final Capacity 15 | 8 15 5 5 Final Carried 15 | 4 15 5 5 Class Distribution -------------------- 100% | Mutant Dominant Class ---------------- Mutant | -10/Materials Mutant | -10/Subcaves Mutant | -9/Scraptown Resources | -11 -10 -10 -9 ----------- Run | Yrd Mat Sub Scr Matter Collected 1175 | 251 453 471 . Remotely . | . . . . Salvage Created 1421 | 10 668 743 . Parts 102 | 3 50 49 . Haulers Intercepted 2 | . 2 . . Recyclers Shooed 1 | 1 . . . Parts Field Recycled . | . . . . Retrieved Matter . | . . . . Parts Self-Destructed 22 | . . 22 . Prevented . | . . . . Parts Restored . | . . . . Kills | -11 -10 -10 -9 ------- Run | Yrd Mat Sub Scr Combat Hostiles Destroyed 40 | . 20 20 . Guns 1 | . 1 . . Cannons 21 | . 2 19 . AOE 17 | . 17 . . Classes Destroyed 13 | 1 8 4 . Worker 1 | . 1 . . Builder 1 | . 1 . . Tunneler 2 | 1 1 . . Hauler 2 | . 2 . . Recycler 1 | . 1 . . Mechanic 1 | . 1 . . Turret 2 | . . 2 . Watcher 3 | . 3 . . Swarmer 13 | . 6 7 . Grunt 16 | . 14 2 . Sentry 1 | . . 1 . Artisan 1 | . . 1 . Subdweller 10 | . . 10 . Best Kill Streak 6 | 1 6 5 . Combat Bots Only 5 | . 5 4 . Max Kills in Single Turn 3 | 1 3 1 . Gunslinging . | . . . . Exploded 3 | . 3 . . Melee . | . . . . Uniques/NPCs Destroyed . | . . . . Combat | -11 -10 -10 -9 -------- Run | Yrd Mat Sub Scr Hostile Shots Fired 113 | . 35 78 . Missed 42 | . 17 25 . Hits 71 | . 18 53 . Projectile 71 | . 18 53 . AOE 4 | . . 4 . Critical Strikes 1 | . 1 . . Damage Taken 1172 | . 214 958 . Core 245 | . 66 179 . Absorbed by Shields . | . . . . Redirected to Shielding 17 | . . 17 . Core Remaining (%) 100 | 100 . . . Volleys Fired 137 | 13 55 69 . Largest 2 | 2 2 2 . Hottest 160 | 40 50 160 . Shots Fired 222 | 26 72 124 . Gun 63 | 26 37 . . Cannon 134 | . 10 124 . Launcher 25 | . 25 . . Special . | . . . . Kinetic 73 | 26 47 . . Thermal 124 | . . 124 . Explosive 25 | . 25 . . Electromagnetic . | . . . . Robot Hit Streak 8 | 4 8 8 . Robot Miss Streak 4 | 3 2 4 . Penetration Max . | . . . . Secondary Targets . | . . . . Shots Hit Robots 106 | 15 36 55 . Core Hits 82 | 4 52 26 . Critical Kills 2 | . . 2 . Critical Parts Destroyed . | . . . . Critical Strikes 2 | . . 2 . Meltdown 2 | . . 2 . Melee Attacks . | . . . . Impact . | . . . . Slashing . | . . . . Piercing . | . . . . Sneak Attacks . | . . . . Combat Hostiles . | . . . . Follow-up Attacks . | . . . . Damage Inflicted 3069 | 125 1669 1275 . Guns 418 | 119 299 . . Cannons 1444 | . 169 1275 . Explosions 1201 | . 1201 . . Melee . | . . . . Ramming 6 | 6 . . . Kinetic 587 | 119 468 . . Thermal 1275 | . . 1275 . Explosive 1201 | . 1201 . . Electromagnetic . | . . . . Impact . | . . . . Slashing . | . . . . Piercing . | . . . . Highest Corruption 3 | . 3 3 . Average Corruption 2 | . 2 3 . Corruption Purged . | . . . . Corruption Blocked . | . . . . Effects 74 | . 13 61 . Message Errors 21 | . 3 18 . Matter Fused 20 | . 4 16 . Heat Flow Errors 8 | . . 8 . Energy Discharges 6 | . 3 3 . Data Loss (minor) 7 | . 2 5 . Data Loss (major) 4 | . 1 3 . Misfires 8 | . . 8 . Overload Shots . | . . . . Overflow Damage 21 | . 21 . . Projectiles 1 | . 1 . . Explosions 20 | . 20 . . Melee . | . . . . Knockbacks 3 | . 3 . . Impact . | . . . . Kinetic 3 | . 3 . . Secondary . | . . . . Self-Inflicted Damage 13 | . 13 . . Shots 1 | . 1 . . Rammed . | . . . . Targets Rammed 1 | 1 . . . Kicked 1 | 1 . . . Crushed . | . . . . Highest Temperature 258 | . 25 258 . Average Temperature 60 | . 6 65 . Received Heat Transfer 288 | . 126 162 . Siege Activations . | . . . . Martial Activations . | . . . . Shielding Activations . | . . . . Robots Disrupted . | . . . . Combat Hostiles . | . . . . Robots Corrupted . | . . . . Combat Hostiles . | . . . . Parts Fried . | . . . . Impact Corruptions . | . . . . Robots Melted 2 | . . 2 . Combat Hostiles 1 | . . 1 . Parts Melted 2 | . . 2 . Heat Transferred 1998 | . . 1998 . Parts Sabotaged . | . . . . Parts Stolen . | . . . . Parts Stripped . | . . . . Power Chain Reactions . | . . . . Alert | -11 -10 -10 -9 ------- Run | Yrd Mat Sub Scr Maximum Alert Level 1 | . 1 . . Low Security (%) 63 | 100 60 . . Level 1 36 | . 39 . . Level 2 . | . . . . Level 3 . | . . . . Level 4 . | . . . . Level 5 . | . . . . High Security . | . . . . Max Security . | . . . . Peak Influence 355 | 5 355 . . Initial . | . . . . Average 165 | . 178 . . Influence Increases 976 | 5 696 275 . Destroy 0b10 Robot/C 640 | . 400 240 . Destroy 0b10 Robot/NC 55 | 5 50 . . Destroy Leader 100 | . 80 20 . Successful Hack 6 | . 6 . . Select Force Hacks 60 | . 60 . . Destroy Structure 100 | . 100 . . Lose Combat Pursuer 15 | . . 15 . Influence Decreases 976 | 5 412 548 11 Entered New Map 148 | . . 137 11 Time Decay 798 | 5 412 381 . Lost Part 30 | . . 30 . Squads Dispatched 3 | . 3 . . Investigation 3 | . 3 . . Extermination . | . . . . Reinforcement . | . . . . Assault . | . . . . Garrison . | . . . . Intercept . | . . . . Searches Triggered . | . . . . Construction Impeded . | . . . . Haulers Reinforced . | . . . . Active Scanning Responses . | . . . . Cargo Convoy Interrupts . | . . . . Stealth | -11 -10 -10 -9 --------- Run | Yrd Mat Sub Scr Distress Signals 1 | . 1 . . Communications Jammed . | . . . . Distress Signals . | . . . . Times Spotted 47 | . 24 23 . Peak Tracking Total 6 | . 4 6 . Tactical Retreats 1 | . . 1 . Traps | -11 -10 -10 -9 ------- Run | Yrd Mat Sub Scr Traps Triggered 4 | . 3 1 . Indirectly . | . . . . Trap Hack Attempts . | . . . . Triggered . | . . . . Disarmed . | . . . . Reprogrammed . | . . . . Reused . | . . . . Traps Extracted . | . . . . Installed . | . . . . Triggered . | . . . . Machines | -11 -10 -10 -9 ---------- Run | Yrd Mat Sub Scr Machines Disabled 2 | . . 2 . Max in Single Turn 1 | . . 1 . Machines Repaired . | . . . . Machines Dismantled . | . . . . Machines Sabotaged . | . . . . Overloaded Fab Kills . | . . . . Hacking | -11 -10 -10 -9 --------- Run | Yrd Mat Sub Scr Machines Accessed 10 | . 9 1 . Terminals 7 | . 7 . . Fabricators . | . . . . Repair Stations . | . . . . Recycling Units 2 | . 2 . . Scanalyzers . | . . . . Garrison Access . | . . . . Total Hacks 20 | . 19 1 . Successful 7 | . 6 1 . Failed 13 | . 13 . . Catastrophic 4 | . 4 . . Database Lockouts . | . . . . Manual 15 | . 15 . . Terminals 17 | . 17 . . Fabricators . | . . . . Repair Stations . | . . . . Recycling Units 2 | . 2 . . Scanalyzers . | . . . . Garrison Access . | . . . . Terminal Hacks 5 | . 4 1 . Robot Analysis 4 | . 4 . . Proto ID Catalog 1 | . . 1 . Fabricator Hacks . | . . . . Repair Station Hacks . | . . . . Recycling Unit Hacks . | . . . . Scanalyzer . | . . . . Garrison Access Hacks . | . . . . Unauthorized Hacks 2 | . 2 . . Terminals . | . . . . Fabricators . | . . . . Repair Stations . | . . . . Recycling Units 2 | . 2 . . Tunnel 2 | . 2 . . Scanalyzers . | . . . . Garrison Access . | . . . . Data Cores Recovered . | . . . . Used . | . . . . Hacking Detections 7 | . 7 . . Full Trace Events . | . . . . Feedback Events . | . . . . Feedback Blocked . | . . . . Robot Schematics Acquired . | . . . . Robots Built . | . . . . Authchips . | . . . . Time . | . . . . Total Robot Build Rating . | . . . . Part Schematics Acquired . | . . . . Parts Built . | . . . . Authchips . | . . . . Time . | . . . . Total Part Build Rating . | . . . . Part Studies Acquired . | . . . . Parts Repaired . | . . . . Time . | . . . . Parts Recycled . | . . . . Recycled Matter . | . . . . Retrieved Matter . | . . . . Retrieved Components . | . . . . Parts Scanalyzed . | . . . . Part Schematics Acquired . | . . . . Parts Damaged . | . . . . Bothacking | -11 -10 -10 -9 ------------ Run | Yrd Mat Sub Scr Used RIF Installer . | . . . . Robots Hacked . | . . . . Non-combat . | . . . . Combat . | . . . . Robot Hacks Applied . | . . . . Relay Couplers Released . | . . . . Fabnet Peak Effective % . | . . . . Robots Rewired . | . . . . Allies Hacked . | . . . . Hacks Repelled . | . . . . Allies | -11 -10 -10 -9 -------- Run | Yrd Mat Sub Scr Total Allies . | . . . . Largest Group . | . . . . Highest-Rated Group . | . . . . Highest-Rated Ally . | . . . . Total Orders . | . . . . Ally Attacks . | . . . . Total Damage . | . . . . Kills . | . . . . Allies Corrupted . | . . . . Allies Melted . | . . . . Intel | -11 -10 -10 -9 ------- Run | Yrd Mat Sub Scr Active Infowar (turns) 942 | 29 913 . . Terrain 942 | 29 913 . . Robot Analysis Total 4 | . 4 . . Derelict Logs Recovered 1 | . . 1 . Drone Launches . | . . . . Drone Recoveries . | . . . . Exploration | -11 -10 -10 -9 ------------- Run | Yrd Mat Sub Scr Turns Passed 4034 | 83 1057 2892 2 Spaces Moved 2159 | 35 527 1596 1 Core . | . . . . Treads 2127 | 3 527 1596 1 Legs 32 | 32 . . . Wheels . | . . . . Hover . | . . . . Flight . | . . . . Fastest Speed 120 | 120 160 160 160 Average Speed 159 | 123 160 160 160 Slowest Speed 160 | 160 160 160 160 Overloaded Moves . | . . . . Propulsion Burnouts . | . . . . Robots Hopped . | . . . . Potential Cave-ins . | . . . . Cave-ins Triggered . | . . . . Exploration Rate (%) 60 | 4 91 86 . Regions Visited 3 Branch Regions 2 Pre-discovered Areas 2 | . 2 . . Known Exits Taken . | . . . . Unknown Exits Taken 3 | 1 1 1 . Scrap Searched 16 | . . 16 . Spaces Dug 9 | . 5 4 . Terrain Destroyed 147 | . 136 11 . Melee . | . . . . Projectile 11 | . . 11 . AOE 136 | . 136 . . Terrain Rammed . | . . . . Walls Destroyed . | . . . . Machines Disabled . | . . . . Actions | -11 -10 -10 -9 --------- Run | Yrd Mat Sub Scr Total 2546 | 54 669 1822 1 Wait 172 | 1 50 121 . Move 2156 | 34 526 1595 1 Hop . | . . . . Pick Up 24 | . 17 7 . Fast Attach 6 | 1 2 3 . Attach 4 | 2 . 2 . Detach . | . . . . Swap 14 | . 9 5 . Drop 32 | 2 10 20 . Fire 137 | 13 55 69 . Melee . | . . . . Ram . | . . . . Kick 1 | 1 . . . Crush . | . . . . Escape Stasis . | . . . . Rewire . | . . . . Trap . | . . . . Miscellaneous . | . . . . Route ------- -11/Scrapyard -10/Materials (discovered 6 exits: [*Mat x3] / [*Min x2] / *Sub) -10/Subcaves (discovered 4 exits: [*Mat x2] / [*Rec] / [*Scr]) -9/Scraptown History --------- Turn | Location | Event 25 | -11/Scrapyard | Discovered new exit (range 3) 84 | -11/Scrapyard | Entered Materials 313 | -10/Materials | Build established: Mutant 381 | -10/Materials | Discovered new exit (range 7) 543 | -10/Materials | Discovered new exit (range 15) 648 | -10/Materials | Discovered new exit (range 8) 796 | -10/Materials | Discovered new exit (range 9) 823 | -10/Materials | Discovered new exit (range 12) 1056 | -10/Materials | Discovered new exit (range 15) 1141 | -10/Materials | Entered Subcaves 1142 | -10/Subcaves | Approached by a straggling Scientist 1173 | -10/Subcaves | Learned Materials security intel 1190 | -10/Subcaves | Core integrity fell below 50% 1390 | -10/Subcaves | Scientist uncovered a shortcut to Scraptown 1740 | -10/Subcaves | A swath of the cavern ceiling suddenly collapsed 1782 | -10/Subcaves | Discovered new exit (range 14) 1946 | -10/Subcaves | Core integrity fell below 20% 1989 | -10/Subcaves | Discovered new exit (range 5) 2043 | -10/Subcaves | Shifting Twisted Machinery released Sub. Beam Cannon 2051 | -10/Subcaves | Shifting Twisted Machinery released Sub. Beam Cannon 2495 | -10/Subcaves | Shifting Twisted Machinery released Battle Rifle 2618 | -10/Subcaves | Shifting Twisted Machinery released Spk. Treads 2637 | -10/Subcaves | Discovered new exit (range 11) 2840 | -10/Subcaves | Shifting Twisted Machinery released Flamer 2846 | -10/Subcaves | Shifting Twisted Machinery released Sub. Laser 2975 | -10/Subcaves | Visited 4L-MR0's lab 4033 | -10/Subcaves | Entered Scraptown 4033 | -9/Scraptown | System corruption cleaned by C-Scrubber 4035 | -9/Scraptown | Self-destructed Last Messages --------------- 03709_ System corrupted: Heat flow error (+212). 03725_ Acquired 6 matter. 03739_ Acquired 8 matter. 03807_ K7|6T91P1 03861_ Subatomizers dissect the Imp. Terrain Scanner. 03893_ System corrupted: Matter fused (-9). 03931_ System corrupted: Heat flow error (+264). 03934_ Searching scrap... 03934_ Found Shrapnel Trap. 03934_ Found 67 Matter. 03935_ Acquired 9 matter. 03961_ System corrupted: Matter fused (-5). 04000_ BDUFYCIRM0F8>XC4N|